bitfinex/quotes_BTCUSD_20240901
["timestamp","ask_amount","ask_price","bid_price","bid_amount"]
[1725153386723,0.02656886,59054.0,59053.0,1.005795]
[1725153387697,0.02156886,59054.0,59053.0,0.667117]
[1725153390065,0.02238786,59054.0,59053.0,0.667117]
[1725153390250,0.02238786,59054.0,59053.0,1.005795]
[1725153390728,0.02238786,59054.0,59053.0,1.346473]
[1725153390972,0.000819,59054.0,59053.0,1.007795]
[1725153391179,0.169305,59065.0,59060.0,0.078]
[1725153391386,0.169308,59064.0,59061.0,0.06948586]
[1725153391599,0.169308,59064.0,59063.0,0.01]
[1725153393437,0.169302,59066.0,59063.0,0.01]
[1725153393664,0.169302,59066.0,59063.0,0.01338584]
[1725153394090,0.169302,59066.0,59065.0,0.01]
[1725153396000,0.507906,59066.0,59065.0,0.01]
[1725153397324,0.53446803,59066.0,59065.0,0.01]
[1725153397931,0.19586403,59066.0,59065.0,0.01]
[1725153398961,0.53446803,59066.0,59065.0,0.01]
[1725153399165,0.507906,59066.0,59065.0,0.01]
[1725153399371,0.169302,59066.0,59065.0,0.01]
[1725153399802,0.1,59073.0,59065.0,0.015]
[1725153400017,0.50785,59073.0,59072.0,0.015]
[1725153400236,0.60785,59073.0,59072.0,0.015]
[1725153400683,0.946418,59073.0,59072.0,0.015]
[1725153400886,1.366386,59073.0,59072.0,0.01]
[1725153401093,1.429986,59073.0,59072.0,0.01]
[1725153401515,1.429986,59073.0,59071.0,0.005]
[1725153401516,0.846422,59072.0,59071.0,0.015]
[1725153401731,0.946422,59072.0,59071.0,0.01]
[1725153401953,0.946422,59072.0,59071.0,0.005]
[1725153402160,1.284991,59072.0,59071.0,0.005]
[1725153402513,1.31155232,59072.0,59071.0,0.005]
[1725153403570,0.846467,59069.0,59068.0,0.01]
[1725153403774,0.946467,59069.0,59068.0,0.0797]
[1725153405615,0.946467,59069.0,59068.0,0.1574]
[1725153406222,0.946467,59069.0,59068.0,0.0797]
[1725153406796,0.946467,59069.0,59068.0,0.015]
[1725153414261,0.947285,59069.0,59068.0,0.015]
[1725153415315,0.947285,59069.0,59068.0,0.01]
[1725153415526,0.947285,59069.0,59068.0,0.015]
[1725153419044,1.285872,59069.0,59068.0,0.015]
[1725153421611,1.285872,59069.0,59068.0,0.005]
[1725153421612,1.426772,59069.0,59068.0,0.005]
[1725153422043,1.426772,59069.0,59066.0,0.005]
[1725153422044,1.185093,59067.0,59066.0,0.005]
[1725153423412,1.185093,59067.0,59066.0,0.01]
[1725153424246,1.185093,59067.0,59066.0,0.015]
[1725153425199,1.185093,59067.0,59066.0,0.005]
[1725153425433,1.185093,59067.0,59066.0,0.01]
[1725153425594,1.185093,59067.0,59066.0,0.005]
[1725153426962,0.507931,59063.0,59062.0,0.4805]
[1725153427186,1.285173,59063.0,59062.0,0.4805]
[1725153427396,1.285173,59063.0,59062.0,0.5473]
[1725153427610,1.285173,59063.0,59062.0,0.5523]
[1725153428060,1.285173,59063.0,59062.0,0.0768]
[1725153428942,1.285173,59063.0,59062.0,0.0668]
[1725153429154,1.285173,59063.0,59062.0,0.005]
[1725153429569,1.185194,59062.0,59061.0,0.005]
[1725153429801,1.285194,59062.0,59061.0,0.005]
[1725153430013,1.185254,59059.0,59058.0,0.005]
[1725153430442,1.185254,59059.0,59056.0,0.0558502]
[1725153430443,0.169327,59057.0,59056.0,0.0558502]
[1725153430661,0.507982,59057.0,59056.0,0.01]
[1725153430887,0.507982,59057.0,59056.0,0.015]
[1725153431762,0.507991,59056.0,59055.0,0.0508502]
[1725153431987,0.508,59055.0,59054.0,0.0058998]
[1725153432240,1.285334,59055.0,59054.0,0.0058998]
[1725153433414,1.3119008,59055.0,59054.0,0.0058998]
[1725153435089,1.285334,59055.0,59054.0,0.0058998]
[1725153435301,1.624001,59055.0,59054.0,0.0058998]
[1725153435516,1.624001,59055.0,59054.0,0.0008998]
[1725153438354,1.65056971,59055.0,59054.0,0.0008998]
[1725153438566,1.65056971,59055.0,59054.0,0.0058998]
[1725153439071,1.31190271,59055.0,59054.0,0.0058998]
[1725153442065,1.31190271,59055.0,59054.0,0.0676998]
[1725153442266,0.63456871,59055.0,59054.0,0.1609998]
[1725153442402,0.608,59055.0,59054.0,0.1609998]
[1725153442635,0.169296,59068.0,59067.0,0.0684]
[1725153443019,0.507889,59068.0,59067.0,0.0684]
[1725153443448,0.846483,59068.0,59067.0,0.0684]
[1725153444113,0.946483,59068.0,59067.0,0.0684]
[1725153444728,1.285077,59068.0,59067.0,0.0684]
[1725153445894,1.31164042,59068.0,59067.0,0.0684]
[1725153446755,1.31164042,59068.0,59067.0,0.0634]
[1725153447795,1.31164042,59068.0,59067.0,0.0684]
[1725153451750,1.31245842,59068.0,59067.0,0.0684]
[1725153452682,1.31245842,59068.0,59067.0,0.0634]
[1725153452861,1.185114,59066.0,59065.0,0.015]
[1725153453107,1.285114,59066.0,59065.0,0.015]
[1725153454971,1.285114,59066.0,59065.0,0.005]
[1725153455179,1.285114,59066.0,59065.0,0.015]
[1725153457294,1.115812,59066.0,59065.0,0.015]
[1725153457720,1.285114,59066.0,59065.0,0.015]
[1725153465030,1.285114,59066.0,59065.0,0.005]
[1725153465233,0.16931,59063.0,59062.0,0.005]
[1725153465454,0.169319,59060.0,59059.0,0.005]
[1725153465660,0.946595,59060.0,59059.0,0.005]
[1725153466108,0.84661,59059.0,59058.0,0.005]
[1725153466329,1.185254,59059.0,59058.0,0.005]
[1725153467216,1.2118197,59059.0,59058.0,0.005]
[1725153467440,1.3118197,59059.0,59058.0,0.005]
[1725153470136,1.285254,59059.0,59058.0,0.005]
[1725153470487,1.185275,59058.0,59057.0,0.005]
[1725153470698,1.285275,59058.0,59057.0,0.005]
[1725153471540,1.185292,59057.0,59056.0,0.0774]
[1725153471762,1.285292,59057.0,59056.0,0.0774]
[1725153472496,1.40094,59057.0,59056.0,0.0674]
[1725153472712,1.40094,59057.0,59056.0,0.005]
[1725153472921,1.185313,59056.0,59055.0,0.005]
[1725153473045,1.285313,59056.0,59055.0,0.005]
[1725153473460,1.31187994,59056.0,59055.0,0.005]
[1725153475656,1.31187994,59056.0,59055.0,0.0058998]
[1725153476110,1.285313,59056.0,59055.0,0.0058998]
[1725153476325,1.285313,59056.0,59055.0,0.0008998]
[1725153477139,1.623974,59056.0,59055.0,0.0008998]
[1725153477359,1.646974,59056.0,59055.0,0.0008998]
[1725153478375,1.81552564,59056.0,59055.0,0.0008998]
[1725153478653,1.646974,59056.0,59055.0,0.0008998]
[1725153479604,1.67354354,59056.0,59055.0,0.0008998]
[1725153480807,1.31188254,59056.0,59055.0,0.0756998]
[1725153481236,1.285313,59056.0,59055.0,0.0756998]
[1725153481640,1.285313,59056.0,59055.0,0.0806998]
[1725153484580,1.3118809,59056.0,59055.0,0.0806998]
[1725153488174,1.285313,59056.0,59055.0,0.0806998]
[1725153488568,1.28499065,59056.0,59055.0,0.0806998]
[1725153494170,1.28499065,59056.0,59055.0,0.08063649]
[1725153494585,1.31155884,59056.0,59055.0,0.08063649]
[1725153499083,1.28499065,59056.0,59055.0,0.08063649]
[1725153501486,1.28580865,59056.0,59055.0,0.08063649]
[1725153502105,1.31237633,59056.0,59055.0,0.08063649]
[1725153508981,1.28580865,59056.0,59055.0,0.08063649]
[1725153510004,0.60848665,59056.0,59055.0,0.08063649]
[1725153510476,0.100818,59056.0,59055.0,0.08063649]
[1725153510724,0.000818,59056.0,59055.0,0.78678449]
[1725153510918,0.000818,59056.0,59055.0,1.16498287]
[1725153511126,0.000818,59056.0,59055.0,1.16298287]
[1725153511327,0.000818,59056.0,59055.0,1.26472075]
[1725153511534,0.000818,59056.0,59055.0,1.16298287]
[1725153512146,0.02738169,59056.0,59055.0,1.16297553]
[1725153512564,0.02738169,59056.0,59055.0,1.16497553]
[1725153514655,0.02738169,59056.0,59055.0,1.16297553]
[1725153515531,0.02738169,59056.0,59055.0,1.57796538]
[1725153515736,0.02738169,59056.0,59055.0,1.50364253]
[1725153515923,0.02738169,59056.0,59055.0,2.04317658]
[1725153516129,0.02738169,59056.0,59055.0,1.91592953]
[1725153519064,0.000818,59056.0,59055.0,1.91592953]
[1725153519517,0.000818,59056.0,59055.0,2.04294653]
[1725153520388,0.000818,59056.0,59055.0,2.39661353]
[1725153520594,0.000818,59056.0,59055.0,2.26959653]
[1725153521040,0.000818,59056.0,59055.0,1.93092953]
[1725153521994,0.000818,59056.0,59055.0,1.93084593]
[1725153523720,0.0273775,59056.0,59055.0,1.93084593]
[1725153525333,0.000818,59066.0,59065.0,1.202135]
[1725153525583,0.000818,59066.0,59065.0,1.51022903]
[1725153525826,0.000818,59066.0,59065.0,1.459483]
[1725153526065,0.000818,59066.0,59065.0,1.05396859]
[1725153526293,0.000818,59066.0,59065.0,1.003225]
[1725153526519,0.000818,59066.0,59065.0,1.05395911]
[1725153526811,0.000818,59066.0,59065.0,1.05395857]
[1725153527279,0.000818,59066.0,59065.0,1.003225]
[1725153527552,0.000818,59066.0,59065.0,1.05594891]
[1725153527781,0.000818,59066.0,59065.0,1.13688891]
[1725153528029,0.000818,59066.0,59065.0,1.084165]
[1725153529188,0.000818,59066.0,59065.0,1.086165]
[1725153529387,0.000818,59066.0,59065.0,1.084165]
[1725153529589,0.000818,59066.0,59065.0,1.086165]
[1725153530054,0.000818,59066.0,59065.0,1.424775]
[1725153530251,0.000818,59066.0,59065.0,1.51587536]
[1725153530454,0.000818,59066.0,59065.0,1.439775]
[1725153530661,0.000818,59066.0,59065.0,1.49047207]
[1725153531042,0.000818,59066.0,59065.0,1.439775]
[1725153531462,0.000818,59066.0,59065.0,1.49046478]
[1725153532063,0.000818,59066.0,59065.0,1.48546478]
[1725153532266,0.000818,59066.0,59065.0,1.49046478]
[1725153534447,0.000818,59066.0,59065.0,1.439775]
[1725153535399,0.000818,59066.0,59065.0,1.49044627]
[1725153536609,0.000818,59066.0,59065.0,1.49044423]
[1725153538418,0.13824163,59080.0,59079.0,0.005]
[1725153538619,0.23824163,59080.0,59079.0,0.005]
[1725153539035,0.26479739,59080.0,59079.0,0.005]
[1725153539523,0.26479739,59080.0,59079.0,0.015]
[1725153540506,0.16479739,59080.0,59079.0,0.97897]
[1725153540755,0.16479739,59080.0,59079.0,1.04397]
[1725153541235,0.16479739,59080.0,59079.0,1.04197]
[1725153541485,0.13824163,59080.0,59079.0,1.04197]
[1725153541723,0.13824163,59080.0,59079.0,1.04397]
[1725153543607,0.13824163,59080.0,59079.0,1.04197]
[1725153544704,0.13824163,59080.0,59079.0,1.04397]
[1725153544911,0.16479551,59080.0,59079.0,1.04397]
[1725153545309,0.16479551,59080.0,59079.0,1.12491]
[1725153549135,0.16561351,59080.0,59079.0,1.12491]
[1725153551090,0.16561351,59080.0,59079.0,1.538639]
[1725153551299,0.16561351,59080.0,59079.0,1.58930489]
[1725153551501,0.13905963,59080.0,59079.0,1.58930489]
[1725153551924,0.13905963,59080.0,59079.0,1.13312789]
[1725153552125,0.13905963,59080.0,59079.0,1.05992789]
[1725153552333,0.13905963,59080.0,59079.0,1.009262]
[1725153553695,0.338471,59090.0,59081.0,0.338514]
[1725153554101,0.16924,59088.0,59083.0,0.169252]
[1725153554320,0.169242,59087.0,59083.0,0.169252]
[1725153554672,0.169242,59087.0,59086.0,0.005]
[1725153554765,0.19579461,59087.0,59083.0,0.169252]
[1725153554976,0.507751,59084.0,59083.0,0.01]
[1725153555179,0.507751,59084.0,59083.0,0.015]
[1725153559059,0.846252,59084.0,59083.0,0.015]
[1725153559281,0.507751,59084.0,59083.0,0.015]
[1725153560574,0.16925,59084.0,59083.0,0.015]
[1725153561784,0.338491,59086.0,59085.0,0.01]
[1725153561785,0.507738,59086.0,59085.0,0.01]
[1725153561995,0.507738,59086.0,59085.0,0.015]
[1725153562223,0.169247,59086.0,59085.0,0.015]
[1725153565790,0.19579986,59086.0,59085.0,0.015]
[1725153566424,0.02655286,59086.0,59085.0,0.35064265]
[1725153566626,0.02655286,59086.0,59085.0,0.43771648]
[1725153566831,0.02655286,59086.0,59085.0,0.77621148]
[1725153567033,0.02655286,59086.0,59085.0,1.1521944]
[1725153568436,0.02655286,59086.0,59085.0,1.07607292]
[1725153568671,0.02655286,59086.0,59085.0,1.15222094]
[1725153568929,0.02655286,59086.0,59085.0,1.15807292]
[1725153569091,0.000818,59087.0,59086.0,0.579433]
[1725153569317,0.000818,59087.0,59086.0,0.65758076]
[1725153569677,0.000818,59087.0,59086.0,1.03156252]
[1725153570495,0.000818,59087.0,59086.0,0.95741476]
[1725153570638,0.000818,59087.0,59086.0,1.03357852]
[1725153570839,0.000818,59087.0,59086.0,1.03157852]
[1725153571241,0.000818,59087.0,59086.0,0.95541476]
[1725153572268,0.02736953,59087.0,59086.0,0.95741476]
[1725153572525,0.02736953,59087.0,59086.0,1.29590376]
[1725153573760,0.02736953,59087.0,59086.0,1.29390376]
[1725153573966,0.02736953,59087.0,59086.0,1.76426189]
[1725153574169,0.02736953,59087.0,59086.0,1.84520189]
[1725153574372,0.02736953,59087.0,59086.0,1.72033276]
[1725153574576,0.02736953,59087.0,59086.0,1.71833276]
[1725153575250,0.02736953,59087.0,59086.0,1.37984376]
[1725153577389,0.02736953,59087.0,59086.0,1.50681895]
[1725153577590,0.02736953,59087.0,59086.0,1.37984376]
[1725153578337,0.02736953,59087.0,59086.0,1.50681895]
[1725153578722,0.02736953,59087.0,59086.0,1.37984376]
[1725153579048,0.000818,59087.0,59086.0,1.37984376]
[1725153579460,0.000818,59087.0,59086.0,1.16832995]
[1725153582269,0.0273684,59087.0,59086.0,1.16832995]
[1725153582473,0.0273684,59087.0,59086.0,1.1684318]
[1725153582951,0.0273684,59087.0,59086.0,1.04135476]
[1725153583151,0.0273684,59087.0,59086.0,1.16843178]
[1725153583375,0.1966094,59087.0,59086.0,0.47192176]
[1725153583793,0.170059,59087.0,59086.0,0.47282156]
[1725153584205,0.508542,59087.0,59086.0,0.39188156]
[1725153584413,0.170059,59087.0,59086.0,0.39188156]
[1725153584649,0.170059,59087.0,59086.0,0.51895858]
[1725153585394,0.170059,59087.0,59086.0,0.39188156]
[1725153585632,0.19661026,59087.0,59086.0,0.39188156]
[1725153587538,0.19661026,59087.0,59086.0,0.45808156]
[1725153587766,0.02736926,59087.0,59086.0,0.45808156]
[1725153588984,0.000818,59087.0,59086.0,0.45808156]
[1725153589687,0.000818,59087.0,59086.0,0.45807399]
[1725153591564,0.000818,59087.0,59086.0,0.96780699]
[1725153591788,0.000818,59087.0,59086.0,1.04500699]
[1725153592279,0.000818,59087.0,59086.0,1.38349599]
[1725153594924,0.000818,59087.0,59086.0,1.38348182]
[1725153595368,0.02736765,59087.0,59086.0,1.38348182]
[1725153599940,0.02736765,59087.0,59086.0,1.38347923]
[1725153600499,0.02736765,59087.0,59086.0,1.38147923]
[1725153601797,0.02736765,59087.0,59086.0,1.38347923]
[1725153603567,0.02736765,59087.0,59086.0,1.90980158]
[1725153603953,0.02736765,59087.0,59086.0,2.25329058]
[1725153604138,0.02736765,59087.0,59086.0,2.4058627]
[1725153604516,0.02736765,59087.0,59086.0,2.26920286]
[1725153604735,0.02736765,59087.0,59086.0,2.27920286]
[1725153604948,0.02736765,59087.0,59086.0,2.92391414]
[1725153605158,0.000818,59087.0,59086.0,2.69863186]
[1725153608028,0.000818,59087.0,59086.0,2.69663186]
[1725153608254,0.000818,59087.0,59086.0,2.69863186]
[1725153608493,0.000818,59087.0,59086.0,2.69843401]
[1725153609230,0.000818,59087.0,59086.0,2.68252173]
[1725153609460,0.000818,59087.0,59086.0,2.69843146]
[1725153609649,0.000818,59087.0,59086.0,2.68252173]
[1725153609906,0.000818,59087.0,59086.0,2.69843146]
[1725153610642,0.000818,59087.0,59086.0,2.94638763]
[1725153610854,0.000818,59087.0,59086.0,2.90003146]
[1725153611550,0.000818,59087.0,59086.0,2.94634435]
[1725153612020,0.000818,59087.0,59086.0,2.72143146]
[1725153613598,0.000818,59087.0,59086.0,2.94626831]
[1725153615801,0.000818,59087.0,59086.0,2.93035858]
[1725153616010,0.000818,59087.0,59086.0,2.94626753]
[1725153617467,0.000818,59087.0,59086.0,2.72143068]
[1725153620977,0.000818,59087.0,59086.0,2.69843068]
[1725153621466,0.000818,59087.0,59086.0,2.35994168]
[1725153621700,0.000818,59087.0,59086.0,2.28274168]
[1725153622120,0.000818,59087.0,59086.0,2.43491441]
[1725153622326,0.000818,59087.0,59086.0,2.43491605]
[1725153623031,0.000818,59087.0,59086.0,1.43957727]
[1725153623444,0.000818,59087.0,59086.0,1.10108827]
[1725153623684,0.02736489,59087.0,59086.0,1.10108827]
[1725153624194,0.02736489,59087.0,59086.0,0.47270727]
[1725153624451,0.14236489,59087.0,59086.0,0.47270727]
[1725153624865,0.14236489,59087.0,59086.0,0.59954634]
[1725153625071,0.14236489,59087.0,59086.0,0.76879034]
[1725153625701,0.10996489,59087.0,59086.0,0.76879034]
[1725153625908,0.02736489,59087.0,59086.0,0.83979034]
[1725153626118,0.02736489,59087.0,59086.0,0.71495127]
[1725153626542,0.02736489,59087.0,59086.0,1.05344027]
[1725153627215,0.02736489,59087.0,59086.0,1.05144027]
[1725153628430,0.000818,59087.0,59086.0,1.47792927]
[1725153628664,0.000818,59087.0,59086.0,1.81641827]
[1725153628839,0.000818,59087.0,59086.0,2.49486031]
[1725153629236,0.000818,59087.0,59086.0,2.49686031]
[1725153630223,0.000818,59087.0,59086.0,2.68317658]
[1725153631408,0.000818,59087.0,59086.0,2.70617658]
[1725153632563,0.000818,59087.0,59086.0,2.93101343]
[1725153633384,0.000818,59087.0,59086.0,2.70617658]
[1725153633610,0.000818,59087.0,59086.0,2.95646798]
[1725153638086,0.000818,59087.0,59086.0,2.9563642]
[1725153638755,0.000818,59087.0,59086.0,2.93090965]
[1725153638939,0.115,59106.0,59086.0,2.93090965]
[1725153638940,0.04893714,59131.0,59109.0,0.015]
[1725153639156,0.169994,59110.0,59109.0,0.015]
[1725153639568,0.508346,59110.0,59109.0,0.015]
[1725153641917,0.590946,59110.0,59109.0,0.015]
[1725153643583,0.61748904,59110.0,59109.0,0.015]
[1725153645724,0.61748904,59110.0,59109.0,0.06576579]
[1725153646388,0.61748904,59110.0,59109.0,0.015]
[1725153647737,0.61748904,59110.0,59109.0,0.06576579]
[1725153648415,0.61748904,59110.0,59109.0,0.015]
[1725153648840,0.61748904,59110.0,59109.0,0.0657992]
[1725153649045,0.590946,59110.0,59109.0,0.46701641]
[1725153649585,0.590946,59110.0,59109.0,0.39086772]
[1725153652552,0.61748964,59110.0,59109.0,0.39086772]
[1725153654126,0.53456524,59110.0,59109.0,0.015]
[1725153655522,0.53456524,59110.0,59109.0,0.0158987]
[1725153655746,0.53538224,59110.0,59109.0,0.0158987]
[1725153659034,0.5088386,59110.0,59109.0,0.0158987]
[1725153659257,0.5088386,59110.0,59109.0,0.09211519]
[1725153659502,0.5088386,59110.0,59109.0,0.0158987]
[1725153660765,0.5088386,59110.0,59109.0,0.09211434]
[1725153661768,0.169993,59110.0,59109.0,0.0921122]
[1725153662138,0.169993,59110.0,59109.0,0.46797356]
[1725153662345,0.19653635,59110.0,59109.0,0.46797356]
[1725153662624,0.19653635,59110.0,59109.0,0.0921122]
[1725153662892,0.19653635,59110.0,59109.0,0.46797683]
[1725153663075,0.19653635,59110.0,59109.0,0.0921122]
[1725153663343,0.53488835,59110.0,59109.0,0.0921122]
[1725153664062,0.53488835,59110.0,59109.0,0.49338266]
[1725153664320,0.53488835,59110.0,59109.0,0.39176397]
[1725153665087,0.53488835,59110.0,59109.0,0.49337807]
[1725153665331,0.508345,59110.0,59109.0,0.49337807]
[1725153665572,0.53488833,59110.0,59109.0,0.39176397]
[1725153666081,0.53488833,59110.0,59109.0,0.49337691]
[1725153666543,0.53488833,59110.0,59109.0,0.49337554]
[1725153666788,0.53488833,59110.0,59109.0,0.49337888]
[1725153667774,0.53488833,59110.0,59109.0,0.49337713]
[1725153669161,0.508345,59110.0,59109.0,0.49337713]
[1725153669397,0.508345,59110.0,59109.0,0.39176499]
[1725153670343,0.508345,59110.0,59109.0,0.49338293]
[1725153670576,0.508345,59110.0,59109.0,0.39176499]
[1725153671527,0.508345,59110.0,59109.0,0.51878235]
[1725153671769,0.508345,59110.0,59109.0,0.39176499]
[1725153672337,0.508345,59110.0,59109.0,0.51878235]
[1725153673486,0.508345,59110.0,59109.0,0.39176499]
[1725153673726,0.5348882,59110.0,59109.0,0.39176499]
[1725153676858,1.2869922,59110.0,59109.0,0.39176499]
[1725153676860,1.2869922,59110.0,59109.0,0.48358092]
[1725153677089,1.2869922,59110.0,59109.0,0.51902816]
[1725153677327,1.2869922,59110.0,59109.0,0.39179198]
[1725153677328,1.2115922,59110.0,59109.0,0.39179198]
[1725153677590,1.2115922,59110.0,59109.0,0.51902816]
[1725153677856,1.2115922,59110.0,59109.0,0.39179198]
[1725153678115,0.8732402,59110.0,59109.0,0.39179198]
[1725153678340,0.9732402,59110.0,59109.0,0.51902816]
[1725153678592,0.9732402,59110.0,59109.0,0.39179198]
[1725153679310,0.9732402,59110.0,59109.0,0.51902816]
[1725153680566,0.9732402,59110.0,59109.0,0.39179198]
[1725153680825,0.9732402,59110.0,59109.0,0.51902816]
[1725153681796,0.9732402,59110.0,59109.0,0.3917811]
[1725153682257,0.9732402,59110.0,59109.0,0.51899939]
[1725153682961,0.9732402,59110.0,59109.0,0.3917811]
[1725153683463,0.9732402,59110.0,59109.0,0.51899939]
[1725153683706,0.9732402,59110.0,59109.0,0.3917811]
[1725153684471,0.9732402,59110.0,59109.0,0.51899939]
[1725153685604,0.9732402,59110.0,59109.0,0.3917811]
[1725153686781,0.9732402,59110.0,59109.0,0.0158987]
[1725153687007,0.9732402,59110.0,59109.0,0.39178388]
[1725153688619,0.6348882,59110.0,59109.0,0.39178388]
[1725153688831,0.6348882,59110.0,59109.0,0.58519335]
[1725153689340,0.608345,59110.0,59109.0,0.58519335]
[1725153690937,0.946697,59110.0,59109.0,0.45798388]
[1725153691317,0.946697,59110.0,59109.0,0.58519335]
[1725153692079,0.946697,59110.0,59109.0,0.45798388]
[1725153692697,0.946697,59110.0,59109.0,0.58519335]
[1725153693313,0.269993,59110.0,59109.0,0.58519335]
[1725153693945,0.608345,59110.0,59109.0,0.58519335]
[1725153696846,0.608345,59110.0,59109.0,0.58518495]
[1725153697707,0.63488855,59110.0,59109.0,0.58518495]
[1725153701995,0.63488855,59110.0,59109.0,0.58518598]
[1725153702418,0.29653655,59110.0,59109.0,0.58518598]
[1725153702859,0.63488855,59110.0,59109.0,0.58518598]
[1725153703511,0.29653655,59110.0,59109.0,0.58518598]
[1725153707286,0.29653655,59110.0,59109.0,0.58518768]
[1725153709168,0.269993,59110.0,59109.0,0.58518768]
[1725153712112,0.269993,59110.0,59109.0,0.58519611]
[1725153712658,0.29653663,59110.0,59109.0,0.58519611]
[1725153716411,0.63488863,59110.0,59109.0,0.58519611]
[1725153717056,0.63488863,59110.0,59109.0,0.0820987]
[1725153717319,0.63488863,59110.0,59109.0,0.58520961]
[1725153717813,0.29653663,59110.0,59109.0,0.45797729]
[1725153718043,0.63488863,59110.0,59109.0,0.45797729]
[1725153718747,0.29653663,59110.0,59109.0,0.45797729]
[1725153719225,0.269993,59110.0,59109.0,0.45797729]
[1725153721414,0.608345,59110.0,59109.0,0.45797729]
[1725153722404,0.63488846,59110.0,59109.0,0.45797729]
[1725153726027,0.63488846,59110.0,59109.0,0.45797902]
[1725153728419,0.63388864,59110.0,59109.0,0.45797902]
[1725153728628,0.63388864,59110.0,59109.0,0.58524197]
[1725153732581,0.63388864,59110.0,59109.0,0.45797902]
[1725153732803,0.60734518,59110.0,59109.0,0.45797902]
[1725153735506,0.26899318,59110.0,59109.0,0.45797902]
[1725153735958,0.26899318,59110.0,59109.0,0.4579761]
[1725153736175,0.29553658,59110.0,59109.0,0.4579761]
[1725153736798,0.1273604,59110.0,59109.0,0.4579761]
[1725153737037,0.0273604,59110.0,59109.0,0.4579761]
[1725153737250,0.1273604,59110.0,59109.0,0.4579761]
[1725153739028,0.0273604,59110.0,59109.0,0.4579761]
[1725153739289,0.100817,59110.0,59109.0,0.4579761]
[1725153740149,0.34486975,59114.0,59109.0,0.4579761]
[1725153740367,0.34486975,59114.0,59113.0,0.01]
[1725153740789,0.17570075,59114.0,59113.0,0.15255976]
[1725153741010,0.17570075,59114.0,59113.0,0.0762]
[1725153741437,0.17570075,59114.0,59113.0,0.15255943]
[1725153742292,0.27570075,59114.0,59113.0,0.15255943]
[1725153742539,0.30224294,59114.0,59113.0,0.15255943]
[1725153744090,0.03307894,59114.0,59113.0,0.49589443]
[1725153744311,0.03307894,59114.0,59113.0,1.83548597]
[1725153744524,0.00653675,59114.0,59113.0,1.49715097]
[1725153746105,0.00653675,59114.0,59113.0,1.49709634]
[1725153746314,0.03307664,59114.0,59113.0,1.49709634]
[1725153746541,0.03307664,59114.0,59113.0,1.62420242]
[1725153748204,0.03307664,59114.0,59113.0,1.28586742]
[1725153748416,0.03307664,59114.0,59113.0,1.15876134]
[1725153749106,0.00653675,59114.0,59113.0,1.15876134]
[1725153750522,0.00653675,59114.0,59113.0,1.16076134]
[1725153750759,0.00653675,59114.0,59113.0,1.15876134]
[1725153750995,0.00653675,59114.0,59113.0,1.1587602]
[1725153752396,0.03307648,59114.0,59113.0,1.1587602]
[1725153753247,0.338255,59127.0,59113.0,1.1587602]
[1725153753248,0.00818,59132.0,59125.0,0.184133]
[1725153753398,0.00818,59132.0,59125.0,1.000365]
[1725153753656,0.00818,59132.0,59125.0,1.61880008]
[1725153753864,0.00818,59132.0,59125.0,1.28053408]
[1725153754565,0.00818,59132.0,59125.0,1.1535572]
[1725153755491,0.00818,59132.0,59125.0,1.255008]
[1725153756406,0.00818,59132.0,59125.0,1.1535572]
[1725153756645,0.03472441,59126.0,59125.0,1.2271772]
[1725153757156,0.03472441,59126.0,59125.0,1.5654432]
[1725153758510,0.03472441,59126.0,59125.0,1.2271772]
[1725153758717,0.03472441,59126.0,59125.0,0.92739333]
[1725153759553,0.03472441,59126.0,59125.0,0.851367]
[1725153761297,0.03472441,59126.0,59125.0,0.92739333]
[1725153761505,0.03472441,59126.0,59125.0,0.851367]
[1725153761710,0.03472441,59126.0,59125.0,1.30311019]
[1725153762128,0.03472441,59126.0,59125.0,0.92739333]
[1725153762538,0.03472441,59126.0,59125.0,1.22707674]
[1725153762740,0.03472441,59126.0,59125.0,1.30305174]
[1725153762945,0.03472441,59126.0,59125.0,1.22707674]
[1725153763127,0.03472441,59126.0,59125.0,1.32852754]
[1725153763402,0.03472441,59126.0,59125.0,1.21287954]
[1725153763588,0.03472441,59126.0,59125.0,0.88881074]
[1725153763809,0.03472441,59126.0,59125.0,0.74911074]
[1725153764036,0.03472441,59126.0,59125.0,1.08737674]
[1725153765805,0.03472441,59126.0,59125.0,1.16333648]
[1725153766423,0.03472441,59126.0,59125.0,1.42564274]
[1725153766630,0.03472441,59126.0,59125.0,1.50159231]
[1725153769064,0.00819,59126.0,59125.0,1.50159231]
[1725153769483,0.00819,59126.0,59125.0,1.50159124]
[1725153770775,0.00819,59126.0,59125.0,1.12588257]
[1725153771001,0.00819,59126.0,59125.0,1.12586354]
[1725153771469,0.00819,59126.0,59125.0,1.049933]
[1725153771917,0.00819,59126.0,59125.0,1.42563221]
[1725153772383,0.03472166,59126.0,59125.0,1.5015547]
[1725153773242,0.03472166,59126.0,59125.0,1.049933]
[1725153773865,0.03472166,59126.0,59125.0,0.711667]
[1725153778371,0.03472166,59126.0,59125.0,0.08862]
[1725153778595,0.03472166,59126.0,59125.0,0.257753]
[1725153778834,0.03472166,59126.0,59125.0,0.08862]
[1725153779044,0.00819,59126.0,59125.0,0.08862]
[1725153781913,0.00819,59126.0,59125.0,0.16455783]
[1725153782393,0.03472427,59126.0,59125.0,0.08862]
[1725153782598,0.20385427,59126.0,59125.0,0.16455783]
[1725153782815,0.20385427,59126.0,59125.0,0.08862]
[1725153783258,0.03472427,59126.0,59125.0,0.08862]
[1725153783482,0.03472427,59126.0,59125.0,0.16455783]
[1725153784406,0.03472427,59126.0,59125.0,0.5402738]
[1725153784629,0.20385427,59126.0,59125.0,0.46433597]
[1725153786453,0.20385427,59126.0,59125.0,0.56558641]
[1725153787601,0.20385427,59126.0,59125.0,0.46433597]
[1725153787829,0.20385427,59126.0,59125.0,0.39071597]
[1725153788441,0.20385427,59126.0,59125.0,0.51727903]
[1725153789098,0.17732,59126.0,59125.0,0.51727903]
[1725153789309,0.26185104,59128.0,59127.0,0.005]
[1725153789518,0.26185104,59128.0,59127.0,0.38071597]
[1725153789519,0.43097504,59128.0,59127.0,0.38071597]
[1725153789722,0.43097504,59128.0,59127.0,0.38571597]
[1725153790103,0.43097504,59128.0,59127.0,0.39071597]
[1725153792220,0.169124,59128.0,59127.0,0.39071597]